fUST/lending_fUST_20250312
["ID","MTS","AMOUNT","RATE_DAILY","PERIOD"]
[356008651,1741793474095,-511.42587583,0.00023561,2]
[356008652,1741793474105,-278.08808999,0.00023561,2]
[356008653,1741793474114,-500.0,0.00023561,2]
[356008654,1741793474125,-500.0,0.00023561,2]
[356008655,1741793474136,-1346.12,0.00023561,2]
[356008656,1741793474146,-500.0,0.00023561,2]
[356008657,1741793474155,-500.0,0.00023561,2]
[356008658,1741793474166,-500.0,0.00023561,2]
[356008659,1741793474175,-500.0,0.00023561,2]
[356008660,1741793474184,-500.0,0.00023561,2]
[356008661,1741793474195,-500.0,0.00023561,2]
[356008662,1741793474206,-500.0,0.00023561,2]
[356008663,1741793474216,-500.0,0.00023561,2]
[356008664,1741793474225,-500.0,0.00023561,2]
[356008665,1741793474235,-1073.29,0.00023561,2]
[356008666,1741793474244,-500.0,0.00023561,2]
[356008667,1741793474256,-500.0,0.00023561,2]
[356008668,1741793474265,-500.0,0.00023561,2]
[356008669,1741793474274,-500.0,0.00023561,2]
[356008670,1741793474284,-1976.23,0.00023561,2]
[356008671,1741793474295,-263.69729038,0.00023561,2]
[356008672,1741793474304,-585.62,0.00023561,2]
[356008673,1741793474314,-683.59,0.00023561,2]
[356008674,1741793474323,-1143.79,0.00023561,2]
[356008675,1741793474334,-550.04,0.00023561,2]
[356008676,1741793474343,-500.0,0.00023561,2]
[356008677,1741793474352,-574.47,0.00023561,2]
[356008678,1741793474361,-500.0,0.00023561,2]
[356008679,1741793474371,-500.0,0.00023561,2]
[356008680,1741793474381,-630.03,0.00023561,2]
[356008681,1741793474390,-500.0,0.00023561,2]
[356008682,1741793474400,-500.0,0.00023561,2]
[356008683,1741793474410,-500.0,0.00023561,2]
[356008684,1741793474420,-500.0,0.00023561,2]
[356008685,1741793474430,-1237.12,0.00023561,2]
[356008686,1741793474439,-500.0,0.00023561,2]
[356008687,1741793474450,-500.0,0.00023561,2]
[356008688,1741793474460,-500.0,0.00023561,2]
[356008689,1741793474470,-500.0,0.00023561,2]
[356008690,1741793474479,-500.0,0.00023561,2]
[356008691,1741793474488,-500.0,0.00023561,2]
[356008692,1741793474498,-500.0,0.00023561,2]
[356008693,1741793474509,-567.64,0.00023561,2]
[356008694,1741793474518,-507.33744744,0.00023561,2]
[356008695,1741793474528,-500.0,0.00023561,2]
[356008696,1741793474537,-500.0,0.00023561,2]
[356008697,1741793474547,-500.0,0.00023561,2]
[356008698,1741793474556,-2141.55,0.00023561,2]
[356008699,1741793474566,-500.0,0.00023561,2]
[356008700,1741793474575,-1204.72,0.00023561,2]
[356008701,1741793474585,-594.82,0.00023561,2]
[356008702,1741793474595,-1495.98,0.00023561,2]
[356008703,1741793474604,-500.0,0.00023561,2]
[356008704,1741793474614,-500.0,0.00023561,2]
[356008705,1741793474623,-2086.04,0.00023561,2]
[356008706,1741793474633,-500.0,0.00023561,2]
[356008707,1741793474643,-500.0,0.00023561,2]
[356008708,1741793474653,-500.0,0.00023561,2]
[356008709,1741793474663,-500.0,0.00023561,2]
[356008710,1741793474673,-2327.1,0.00023561,2]
[356008711,1741793474683,-173.85399507,0.00023561,2]
[356008712,1741793474693,-500.0,0.00023561,2]
[356008713,1741793474702,-637.3,0.00023561,2]
[356008714,1741793474712,-500.0,0.00023561,2]
[356008715,1741793474722,-547.46,0.00023561,2]
[356008716,1741793474733,-500.0,0.00023561,2]
[356008717,1741793474743,-588.52690033,0.00023561,2]
[356008718,1741793474754,-1767.72,0.00023561,2]
[356008719,1741793474765,-9180.3,0.00023561,2]
[356008720,1741793474775,-500.0,0.00023561,2]
[356008721,1741793474785,-500.0,0.00023561,2]
[356008722,1741793474796,-817.19,0.00023561,2]
[356008723,1741793474805,-500.0,0.00023561,2]
[356008724,1741793474816,-1210.4,0.00023561,2]
[356008725,1741793474826,-500.0,0.00023561,2]
[356008726,1741793474835,-729.28,0.00023561,2]
[356008727,1741793474844,-1010.81,0.00023561,2]
[356008728,1741793474854,-500.0,0.00023561,2]
[356008729,1741793474864,-500.0,0.00023561,2]
[356008730,1741793474874,-769.44,0.00023561,2]
[356008731,1741793474884,-500.0,0.00023561,2]
[356008732,1741793474894,-819.43,0.00023561,2]
[356008733,1741793474905,-500.0,0.00023561,2]
[356008734,1741793474916,-500.0,0.00023561,2]
[356008735,1741793474926,-1150.77,0.00023561,2]
[356008736,1741793474936,-1317.48,0.00023561,2]
[356008737,1741793474946,-1475.87,0.00023561,2]
[356008738,1741793474956,-1935.28,0.00023561,2]
[356008739,1741793474966,-500.0,0.00023561,2]
[356008740,1741793474976,-1259.36,0.00023561,2]
[356008741,1741793474987,-500.0,0.00023561,2]
[356008742,1741793474997,-1688.25,0.00023561,2]
[356008743,1741793475009,-2024.05,0.00023561,2]
[356008744,1741793475019,-500.0,0.00023561,2]
[356008745,1741793475029,-1435.97,0.00023561,2]
[356008746,1741793475038,-1019.14,0.00023561,2]
[356008747,1741793475047,-998.45,0.00023561,2]
[356008748,1741793475057,-1379.04,0.00023561,2]
[356008749,1741793475067,-500.0,0.00023561,2]
[356008750,1741793475077,-500.0,0.00023561,2]
[356008751,1741793475088,-1828.2,0.00023561,2]
[356008752,1741793475099,-500.0,0.00023561,2]
[356008753,1741793475110,-500.0,0.00023561,2]
[356008754,1741793475125,-500.0,0.00023561,2]
[356008755,1741793475135,-29117.98,0.00023561,2]
[356008756,1741793475144,-500.0,0.00023561,2]
[356008757,1741793475155,-518.96,0.00023561,2]
[356008758,1741793475164,-732.87,0.00023561,2]
[356008759,1741793475174,-500.0,0.00023561,2]
[356008760,1741793475183,-699.35,0.00023561,2]
[356008761,1741793475194,-500.0,0.00023561,2]
[356008762,1741793475204,-5323.54,0.00023561,2]
[356008763,1741793475213,-1802.23,0.00023561,2]
[356008764,1741793475223,-500.0,0.00023561,2]
[356008765,1741793475233,-2894.87,0.00023561,2]
[356008766,1741793475243,-500.0,0.00023561,2]
[356008767,1741793475253,-1272.02,0.00023561,2]
[356008768,1741793475263,-536.83,0.00023561,2]
[356008769,1741793475273,-643.6,0.00023561,2]
[356008770,1741793475283,-500.0,0.00023561,2]
[356008771,1741793475294,-500.0,0.00023561,2]
[356008772,1741793475304,-1390.03,0.00023561,2]
[356008773,1741793475314,-1697.13,0.00023561,2]
[356008774,1741793475324,-500.0,0.00023561,2]
[356008775,1741793475334,-500.0,0.00023561,2]
[356008776,1741793475344,-1665.05,0.00023561,2]
[356008777,1741793475354,-500.0,0.00023561,2]
[356008778,1741793475363,-4035.55,0.00023561,2]
[356008779,1741793475374,-17606.95,0.00023561,2]
[356008780,1741793475384,-3269.46,0.00023561,2]
[356008781,1741793475394,-1059.74,0.00023561,2]
[356008782,1741793475404,-500.0,0.00023561,2]
[356008783,1741793475413,-1465.71,0.00023561,2]
[356008784,1741793475423,-500.0,0.00023561,2]
[356008785,1741793475433,-552.41,0.00023561,2]
[356008786,1741793475443,-734.16,0.00023561,2]
[356008787,1741793475452,-500.0,0.00023561,2]
[356008788,1741793475462,-859.32,0.00023561,2]
[356008789,1741793475472,-500.0,0.00023561,2]
[356008790,1741793475481,-2406.73,0.00023561,2]
[356008791,1741793475491,-1037.65,0.00023561,2]
[356008792,1741793475500,-553.87,0.00023561,2]
[356008793,1741793475512,-862.64,0.00023561,2]
[356008794,1741793475521,-500.0,0.00023561,2]
[356008795,1741793475531,-500.0,0.00023561,2]
[356008796,1741793475542,-500.0,0.00023561,2]
[356008797,1741793475551,-1961.85,0.00023561,2]
[356008798,1741793475562,-500.0,0.00023561,2]
[356008799,1741793475572,-3237.69,0.00023561,2]
[356008800,1741793475581,-1082.88,0.00023561,2]
[356008801,1741793475591,-1883.11,0.00023561,2]
[356008802,1741793475601,-500.0,0.00023561,2]
[356008803,1741793475611,-1228.14,0.00023561,2]
[356008804,1741793475621,-2886.09,0.00023561,2]
[356008805,1741793475631,-924.36,0.00023561,2]
[356008806,1741793475642,-500.0,0.00023561,2]
[356008807,1741793475651,-500.0,0.00023561,2]
[356008808,1741793475661,-500.0,0.00023561,2]
[356008809,1741793475671,-500.0,0.00023561,2]
[356008810,1741793475682,-1000.0,0.00023561,7]
[356008811,1741793475693,-500.0,0.00023561,2]
[356008812,1741793475703,-500.0,0.00023561,2]
[356008813,1741793475714,-1251.64,0.00023561,2]
[356008814,1741793475723,-500.0,0.00023561,2]
[356008815,1741793475734,-834.66,0.00023561,2]
[356008816,1741793475745,-1413.63,0.00023561,2]
[356008817,1741793475755,-626.89,0.00023561,2]
[356008818,1741793475765,-1359.76,0.00023561,2]
[356008819,1741793475775,-653.3,0.00023561,2]
[356008820,1741793475784,-1246.26,0.00023561,2]
[356008821,1741793475794,-1713.43,0.00023561,2]
[356008822,1741793475804,-934.29,0.00023561,2]
[356008823,1741793475814,-507.49,0.00023561,2]
[356008824,1741793475824,-500.0,0.00023561,2]
[356008825,1741793475834,-500.0,0.00023561,2]
[356008826,1741793475845,-1097.06,0.00023561,2]
[356008827,1741793475855,-562.39,0.00023561,2]
[356008828,1741793475865,-4254.57,0.00023561,2]
[356008829,1741793475876,-1594.09,0.00023561,2]
[356008830,1741793475886,-500.0,0.00023561,2]
[356008831,1741793475897,-500.0,0.00023561,2]
[356008832,1741793475907,-820.67,0.00023561,2]
[356008833,1741793475918,-500.0,0.00023561,2]
[356008834,1741793475928,-500.0,0.00023561,2]
[356008835,1741793475938,-2891.54,0.00023561,2]
[356008836,1741793475949,-1726.92,0.00023561,2]
[356008837,1741793475958,-500.0,0.00023561,2]
[356008838,1741793475968,-524.69843762,0.00023561,2]
[356008839,1741793475978,-3383.01,0.00023561,2]
[356008840,1741793475988,-694.4,0.00023561,2]
[356008841,1741793475998,-524.59,0.00023561,2]
[356008842,1741793476010,-1946.89,0.00023561,2]
[356008843,1741793476019,-500.0,0.00023561,2]
[356008844,1741793476028,-9999.0,0.00023561,2]
[356008845,1741793476038,-500.0,0.00023561,2]
[356008846,1741793476049,-926.52,0.00023561,2]
[356008847,1741793476058,-500.0,0.00023561,2]
[356008848,1741793476068,-500.0,0.00023561,2]
[356008849,1741793476078,-186.0617693,0.00023568,2]
[356008850,1741793476087,-300.0,0.000238,11]
[356008851,1741793476098,-589.18,0.00023835,2]
[356008852,1741793476108,-770.4,0.00023835,2]
[356008853,1741793476119,-548.9,0.00023835,2]
[356008854,1741793476132,-763.1,0.00023835,2]
[356008855,1741793476142,-891.72,0.00023835,2]
[356008856,1741793476152,-500.0,0.00023835,2]
[356008857,1741793476163,-500.0,0.00023835,2]
[356008858,1741793476173,-567.07,0.00023835,2]
[356008859,1741793476183,-546.65,0.00023835,2]
[356008860,1741793476192,-511.92,0.00023835,2]
[356008861,1741793476203,-562.06,0.00023835,2]
[356008862,1741793476213,-500.0,0.00023835,2]
[356008863,1741793476223,-500.0,0.00023835,2]
[356008864,1741793476233,-500.0,0.00023835,2]
[356008865,1741793476243,-500.0,0.00023835,2]
[356008866,1741793476254,-500.0,0.00023835,2]
[356008867,1741793476267,-622.93038768,0.00023835,2]
[356008868,1741793476277,-500.0,0.00023835,2]
[356008869,1741793476288,-515.81,0.00023835,2]
[356008870,1741793476298,-500.0,0.00023835,2]
[356008871,1741793476309,-521.89993891,0.00023835,2]
[356008872,1741793476321,-500.0,0.00023835,2]
[356008873,1741793476331,-500.0,0.00023835,2]
[356008874,1741793476341,-500.0,0.00023835,2]
[356008875,1741793476351,-500.0,0.00023835,2]
[356008876,1741793476360,-512.03859362,0.00023835,2]
[356008877,1741793476370,-500.0,0.00023835,2]
[356008878,1741793476380,-661.64,0.00023835,2]
[356008879,1741793476390,-252.90435017,0.00023835,2]
[356008880,1741793476400,-500.0,0.00023835,2]
[356008881,1741793476410,-500.0,0.00023835,2]
[356008882,1741793476420,-516.31551597,0.00023835,2]
[356008883,1741793476430,-500.0,0.00023835,2]
[356008884,1741793476440,-500.0,0.00023835,2]
[356008885,1741793476451,-609.8,0.00023835,2]
[356008886,1741793476462,-1131.2,0.00023835,2]
[356008887,1741793476472,-500.0,0.00023835,2]
[356008888,1741793476482,-500.0,0.00023835,2]
[356008889,1741793476495,-826.09,0.00023835,2]
[356008890,1741793476511,-500.0,0.00023835,2]
[356008891,1741793476522,-500.0,0.00023835,2]
[356008892,1741793476531,-500.0,0.00023835,2]
[356008893,1741793476541,-395.42314722,0.00023835,2]
[356008894,1741793476689,-500.0,0.00023835,2]
[356008895,1741793476698,-267.65300691,0.00023835,2]
[356008896,1741793476707,-500.0,0.00023835,2]
[356008897,1741793476717,-500.500613,0.00023835,2]
[356008898,1741793476727,-1062.19,0.00023835,2]
[356008899,1741793476737,-500.25560079,0.00023835,2]
[356008900,1741793476746,-540.88578405,0.00023835,2]
[356008901,1741793476758,-500.0,0.00023835,2]
[356008902,1741793476767,-500.0,0.00023835,2]
[356008903,1741793476777,-597.21,0.00023835,2]
[356008904,1741793476786,-500.0,0.00023835,2]
[356008905,1741793476796,-874.59,0.00023835,2]
[356008906,1741793476806,-639.77,0.00023835,2]
[356008907,1741793476815,-605.08,0.00023835,5]
[356008908,1741793476825,-500.0,0.00023835,2]
[356008909,1741793476834,-1294.83,0.00023835,2]
[356008910,1741793476844,-1330.17,0.00023835,2]
[356008911,1741793476854,-500.0,0.00023835,2]
[356008912,1741793476863,-500.0,0.00023835,2]
[356008913,1741793476872,-1279.74,0.00023835,2]
[356008914,1741793476882,-500.0,0.00023835,2]
[356008915,1741793476891,-500.0,0.00023835,2]
[356008916,1741793476901,-1722.61,0.00023835,2]
[356008917,1741793476911,-500.0,0.00023835,2]
[356008918,1741793476920,-507.63,0.00023835,2]
[356008919,1741793476930,-527.04,0.00023835,2]
[356008920,1741793476940,-500.0,0.00023835,2]
[356008921,1741793476950,-1063.33,0.00023835,2]
[356008922,1741793476960,-500.0,0.00023835,2]
[356008923,1741793476970,-500.0,0.00023835,2]
[356008924,1741793476979,-500.0,0.00023835,2]
[356008925,1741793476989,-698.39,0.00023835,2]
[356008926,1741793476999,-500.0,0.00023835,2]
[356008927,1741793477011,-500.0,0.00023835,2]
[356008928,1741793477020,-1346.12,0.00023835,2]
[356008929,1741793477030,-500.0,0.00023835,2]
[356008930,1741793477039,-500.0,0.00023835,2]
[356008931,1741793477048,-512.45979595,0.00023835,2]
[356008932,1741793477058,-500.0,0.00023835,2]
[356008933,1741793477068,-500.0,0.00023835,2]
[356008934,1741793477077,-500.0,0.00023835,2]
[356008935,1741793477087,-500.0,0.00023835,2]
[356008936,1741793477096,-500.0,0.00023835,2]
[356008937,1741793477106,-500.0,0.00023835,2]
[356008938,1741793477117,-1073.29,0.00023835,2]
[356008939,1741793477128,-520.80497044,0.00023835,2]
[356008940,1741793477137,-500.0,0.00023835,2]
[356008941,1741793477147,-510.35809028,0.00023835,2]
[356008942,1741793477157,-500.0,0.00023835,2]
[356008943,1741793477167,-1976.23,0.00023835,2]
[356008944,1741793477177,-585.62,0.00023835,2]
[356008945,1741793477187,-683.59,0.00023835,2]
[356008946,1741793477196,-1143.79,0.00023835,2]
[356008947,1741793477207,-550.04,0.00023835,2]
[356008948,1741793477217,-500.0,0.00023835,2]
[356008949,1741793477226,-574.47,0.00023835,2]
[356008950,1741793477236,-500.0,0.00023835,2]
[356008951,1741793477246,-500.0,0.00023835,2]
[356008952,1741793477258,-630.03,0.00023835,2]
[356008953,1741793477268,-301.93500586,0.00023835,2]
[356008954,1741793477277,-500.0,0.00023835,2]
[356008955,1741793477287,-500.0,0.00023835,2]
[356008956,1741793477297,-585.99868644,0.00023835,2]
[356008957,1741793477307,-1237.12,0.00023835,2]
[356008958,1741793477316,-500.0,0.00023835,2]
[356008959,1741793477325,-500.0,0.00023835,2]
[356008960,1741793477335,-500.0,0.00023835,2]
[356008961,1741793477344,-500.0,0.00023835,2]
[356008962,1741793477354,-500.0,0.00023835,2]
[356008963,1741793477363,-500.0,0.00023835,2]
[356008964,1741793477373,-500.0,0.00023835,2]
[356008965,1741793477382,-567.64,0.00023835,2]
[356008966,1741793477391,-500.0,0.00023835,2]
[356008967,1741793477400,-507.78376794,0.00023835,2]
[356008968,1741793477410,-500.0,0.00023835,2]
[356008969,1741793477419,-2141.55,0.00023835,2]
[356008970,1741793477430,-272.20984386,0.00023835,2]
[356008971,1741793477439,-1204.72,0.00023835,2]
[356008972,1741793477448,-594.82,0.00023835,2]
[356008973,1741793477458,-1495.98,0.00023835,2]
[356008974,1741793477467,-500.0,0.00023835,2]
[356008975,1741793477476,-500.0,0.00023835,2]
[356008976,1741793477486,-2086.04,0.00023835,2]
[356008977,1741793477495,-500.0,0.00023835,2]
[356008978,1741793477507,-500.0,0.00023835,2]
[356008979,1741793477516,-500.0,0.00023835,2]
[356008980,1741793477525,-500.0,0.00023835,2]
[356008981,1741793477535,-2327.1,0.00023835,2]
[356008982,1741793477544,-500.0,0.00023835,2]
[356008983,1741793477553,-637.3,0.00023835,2]
[356008984,1741793477562,-575.45146521,0.00023835,2]
[356008985,1741793477572,-547.46,0.00023835,2]
[356008986,1741793477581,-500.0,0.00023835,2]
[356008987,1741793477590,-1767.72,0.00023835,2]
[356008988,1741793477600,-9180.3,0.00023835,2]
[356008989,1741793477609,-500.0,0.00023835,2]
[356008990,1741793477619,-500.0,0.00023835,2]
[356008991,1741793477628,-817.19,0.00023835,2]
[356008992,1741793477638,-500.0,0.00023835,2]
[356008993,1741793477648,-1210.4,0.00023835,2]
[356008994,1741793477657,-500.0,0.00023835,2]
[356008995,1741793477666,-729.28,0.00023835,2]
[356008996,1741793477676,-1010.81,0.00023835,2]
[356008997,1741793477685,-500.0,0.00023835,2]
[356008998,1741793477695,-500.0,0.00023835,2]
[356008999,1741793477704,-769.44,0.00023835,2]
[356009000,1741793477714,-500.0,0.00023835,2]
[356009001,1741793477724,-819.43,0.00023835,2]
[356009002,1741793477734,-500.0,0.00023835,2]
[356009003,1741793477744,-500.0,0.00023835,2]
[356009004,1741793477755,-1150.77,0.00023835,2]
[356009005,1741793477767,-1317.48,0.00023835,2]
[356009006,1741793477777,-1475.87,0.00023835,2]
[356009007,1741793477786,-1935.28,0.00023835,2]
[356009008,1741793477796,-500.0,0.00023835,2]
[356009009,1741793477805,-1259.36,0.00023835,2]
[356009010,1741793477815,-500.0,0.00023835,2]
[356009011,1741793477824,-1688.25,0.00023835,2]
[356009012,1741793477834,-2024.05,0.00023835,2]
[356009013,1741793477844,-500.0,0.00023835,2]
[356009014,1741793477854,-1435.97,0.00023835,2]
[356009015,1741793477863,-1019.14,0.00023835,2]
[356009016,1741793477873,-998.45,0.00023835,2]
[356009017,1741793477882,-1379.04,0.00023835,2]
[356009018,1741793477892,-500.0,0.00023835,2]
[356009019,1741793477902,-1828.2,0.00023835,2]
[356009020,1741793477912,-500.0,0.00023835,2]
[356009021,1741793477922,-500.0,0.00023835,2]
[356009022,1741793477932,-500.0,0.00023835,2]
[356009023,1741793477942,-500.0,0.00023835,2]
[356009024,1741793477951,-8710.64856674,0.00023835,2]
[356009029,1741793790741,750.59,0.00016022,2]
[356009031,1741793869662,163.39,0.00010959,2]
[356009032,1741793880200,816.99,0.00010959,2]
[356009035,1741794025345,21259.559036,0.00015322,2]
[356009037,1741794509122,-1699.42473771,0.00016238,2]
[356009038,1741794509145,-3329.41824245,0.00016256,2]
[356009039,1741794509176,-500.0,0.00016256,2]
[356009040,1741794509201,-500.0,0.00016256,2]
[356009041,1741794509225,-402.52345573,0.00016256,2]
[356009042,1741794509251,-500.0,0.00016256,2]
[356009043,1741794509276,-436.78065508,0.00016256,2]
[356009044,1741794509301,-500.0,0.00016256,2]
[356009045,1741794509328,-500.0,0.00016256,2]
[356009046,1741794509352,-500.0,0.00016256,2]
[356009047,1741794509379,-500.0,0.00016256,2]
[356009048,1741794509406,-208.30191056,0.00016256,2]
[356009049,1741794509432,-414.09794648,0.00016256,2]
[356009050,1741794509460,-500.0,0.00016256,2]
[356009051,1741794509487,-500.0,0.00016256,2]
[356009052,1741794509514,-500.0,0.00016256,2]
[356009053,1741794509540,-500.0,0.00016256,2]
[356009054,1741794509566,-500.0,0.00016256,2]
[356009055,1741794509593,-500.0,0.00016256,2]
[356009056,1741794509621,-500.0,0.00016256,2]
[356009057,1741794509647,-500.0,0.00016256,2]
[356009058,1741794509677,-500.0,0.00016256,2]
[356009059,1741794509702,-201.57314809,0.00016256,2]
[356009060,1741794509727,-220.19594281,0.00016256,2]
[356009061,1741794509751,-35087.68396109,0.00016257,2]
[356009172,1741794638704,-300.0,0.00016256,2]
[356009173,1741794638713,-236.42316121,0.00016257,2]
[356009174,1741794638725,-913.68013903,0.00016257,2]
[356009175,1741794638736,-8397.3492654,0.00016257,2]
[356009176,1741794638747,-177364.86347327,0.00016257,2]
[356009177,1741794638757,-160.00237159,0.00016338,2]
[356009178,1741794638765,-310.04790963,0.00016438,2]
[356009179,1741794638774,-420.0,0.00017768,2]
[356009180,1741794638785,-160.00237157,0.00017845,2]
[356009181,1741794638794,-300.0,0.000179,7]
[356009182,1741794638802,-2258.89,0.00018,2]
[356009183,1741794638811,-381.69091583,0.00018213,2]
[356009184,1741794638821,-194.88,0.000186,2]
[356009185,1741794638831,-160.00237157,0.00019352,2]
[356009186,1741794638840,-300.0,0.000194,8]
[356009187,1741794638850,-587.0,0.00019422,2]
[356009188,1741794638860,-188.48197902,0.0002,2]
[356009189,1741794638870,-336.5260212,0.00020054,2]
[356009190,1741794638879,-150.0,0.00020548,2]
[356009191,1741794638888,-160.00237157,0.00020858,2]
[356009192,1741794638898,-300.0,0.000209,9]
[356009193,1741794638907,-2200.0,0.00020903,2]
[356009194,1741794638918,-500.0,0.00021,2]
[356009195,1741794638927,-759.10858189,0.00021,2]
[356009196,1741794638936,-500.0,0.00021,2]
[356009197,1741794638946,-500.0,0.00021,2]
[356009198,1741794638956,-500.0,0.00021,2]
[356009199,1741794638965,-632.99600459,0.00021,2]
[356009200,1741794638975,-228.32513254,0.00021096,2]
[356009201,1741794638985,-150.0,0.00021126,2]
[356009202,1741794638995,-1920.0,0.00021126,2]
[356009203,1741794639004,-540.0,0.00021126,2]
[356009204,1741794639014,-2272.0,0.00021126,2]
[356009205,1741794639024,-398.0,0.00021126,2]
[356009206,1741794639035,-398.0,0.00021126,2]
[356009207,1741794639044,-823.0,0.00021229,2]
[356009208,1741794639054,-151.0,0.000218,4]
[356009209,1741794639064,-15577.25547611,0.00021816,2]
[356009210,1741794639073,-160.0,0.00021816,2]
[356009211,1741794639083,-160.0,0.00021816,2]
[356009212,1741794639093,-3000.0,0.00021817,2]
[356009213,1741794639103,-8823.12130041,0.00021817,2]
[356009214,1741794639113,-302.0,0.00021904,2]
[356009215,1741794639122,-600.0,0.00021904,2]
[356009216,1741794639132,-563.21803368,0.00021917,2]
[356009217,1741794639152,-502.00413425,0.00021917,2]
[356009218,1741794639163,-504.96513202,0.00021917,2]
[356009219,1741794639173,-506.07395047,0.00021917,2]
[356009220,1741794639184,-500.0,0.00021917,2]
[356009221,1741794639194,-500.0,0.00021917,2]
[356009222,1741794639204,-500.0,0.00021917,2]
[356009223,1741794639214,-500.0,0.00021917,2]
[356009224,1741794639224,-500.0,0.00021917,5]
[356009225,1741794639234,-500.0,0.00021917,2]
[356009226,1741794639245,-500.0,0.00021917,2]
[356009227,1741794639255,-715.23,0.00021917,2]
[356009228,1741794639265,-501.23477947,0.00021917,2]
[356009229,1741794639275,-500.0,0.00021917,2]
[356009230,1741794639285,-500.0,0.00021917,2]
[356009231,1741794639295,-500.0,0.00021917,2]
[356009232,1741794639305,-500.0,0.00021917,2]
[356009233,1741794639315,-500.0,0.00021917,2]
[356009234,1741794639325,-500.0,0.00021917,2]
[356009235,1741794639335,-1063.66,0.00021917,2]
[356009236,1741794639345,-500.0,0.00021917,2]
[356009237,1741794639355,-500.0,0.00021917,2]
[356009238,1741794639365,-500.0,0.00021917,2]
[356009239,1741794639375,-500.0,0.00021917,2]
[356009240,1741794639384,-500.0,0.00021917,2]
[356009241,1741794639394,-500.0,0.00021917,2]
[356009242,1741794639403,-500.0,0.00021917,2]
[356009243,1741794639413,-500.0,0.00021917,2]
[356009244,1741794639422,-500.0,0.00021917,2]
[356009245,1741794639432,-500.0,0.00021917,2]
[356009246,1741794639441,-500.0,0.00021917,2]
[356009247,1741794639451,-500.0,0.00021917,2]
[356009248,1741794639461,-500.0,0.00021917,2]
[356009249,1741794639471,-500.0,0.00021917,2]
[356009250,1741794639480,-500.0,0.00021917,2]
[356009251,1741794639492,-500.0,0.00021917,2]
[356009252,1741794639505,-500.0,0.00021917,2]
[356009253,1741794639515,-500.0,0.00021917,2]
[356009254,1741794639525,-500.0,0.00021917,2]
[356009255,1741794639536,-500.0,0.00021917,2]
[356009256,1741794639546,-500.0,0.00021917,2]
[356009257,1741794639556,-500.0,0.00021917,2]
[356009258,1741794639566,-500.0,0.00021917,2]
[356009259,1741794639577,-500.0,0.00021917,2]
[356009260,1741794639587,-613.14,0.00021917,2]
[356009261,1741794639598,-398.05502889,0.00021917,2]
[356009262,1741794639608,-500.0,0.00021917,2]
[356009263,1741794639618,-213.90072615,0.00021917,2]
[356009264,1741794639628,-500.0,0.00021917,2]
[356009265,1741794639639,-500.0,0.00021917,2]
[356009266,1741794639649,-500.0,0.00021917,2]
[356009267,1741794639659,-500.0,0.00021917,2]
[356009268,1741794639670,-500.0,0.00021917,2]